{"text_format":"1","workbook":"xlsx","n_sheets":4,"sheets":["formular","cesta","ciselnik","data"],"not_rendered":{"charts":0,"images":3,"macros":1,"external_links":0,"defined_names":0,"comments":0,"pivot_tables":0},"unopened":[],"bounds":{"document_bytes":16777216,"sheet_cells":100000,"rows_first":2000,"rows_last":500,"rows_between":2000,"halvings":0,"cell_chars":16384,"cell_head_chars":4096},"cells_cut":0,"cells_raw":0,"read":"whole","date_system":"1900"}

{"sheet":"formular","index":0,"n_rows":51,"n_cols":33,"rows_kept":51,"cut":false,"hidden":false,"merged":[[2,3,6,9],[46,15,46,16],[46,17,46,18],[46,20,46,21],[46,22,46,23],[43,22,43,23],[45,22,45,23],[43,20,43,21],[45,20,45,21],[24,10,24,11],[44,20,44,21],[44,22,44,23],[42,22,42,23],[34,19,35,24],[42,20,42,21],[9,6,9,9],[47,15,47,16],[47,17,47,18],[47,20,47,21],[47,22,47,23],[51,3,56,24],[37,30,37,35],[37,3,37,10],[33,11,33,12],[28,3,28,9],[9,3,9,5],[9,10,9,12],[15,3,16,4],[15,8,16,10],[11,3,11,9],[13,8,13,10],[15,11,16,12],[13,3,13,4],[13,11,13,12],[10,14,16,14],[18,9,18,10],[44,17,44,18],[45,17,45,18],[43,17,43,18],[44,15,44,16],[11,15,11,21],[40,15,40,21],[13,15,13,19],[15,15,16,19],[17,15,17,19],[19,15,19,17],[45,15,45,16],[43,15,43,16]]}
[]
[]
[null,null,null,"Záznam o ZAHÁJENÍ intervence paliativního týmu",null,null,null,null,null,null,null,null,null,null,null,null,null,null,null,null,null,null,null,null,null,null,null,null,null,null,null,null,"01-formular-indikacni-dotaznik"]
[]
[]
[]
[]
[]
[null,null,null,"Jméno",null,null,"Příjmení",null,null,null,"Rodné číslo (bez lomítka)",null,null,null,null,"Věk",null,"Pohlaví",null,"Datum vyplnění"]
[]
[]
[null,null,null,"Hospitalizace / intervence",null,null,null,null,null,null,null,null,null,null,null,"Anamnéza"]
[]
[null,null,null,"Datum hospitalizace1",null,null,null,null,"Základní dg. při hospitalizaci",null,null,null,null,null,null,"Performance status při přijetí (0–4)"]
[]
[null,null,null,"Datum vyžádání intervence NTTP2",null,null,null,null,"Osoba s právem zástupného souhlasu",null,null,null,null,null,null,"Performance status ve stabilním stavu poslední měsíc před hospitalizací (0–4)"]
[]
[null,null,null,"Dokumentace obsahuje informaci o limitaci péče",null,null,null,null,null,null,null,null,null,null,null,"Váhový úbytek více než 5 kg za poslední měsíc"]
[]
[null,null,null,null,null,null,null,null,null,null,null,null,null,null,null,"NECPAL / PaPaS score"]
[null,null,null,"Oddělení vyžadující intervenci NTPP"]
[]
[]
[]
[]
[]
[null,null,null,"Standartní péče",null,null,"JIP / resuscitační péče",null,null,"Následná péče"]
[]
[null,null,null,"Důvody vyžádání intervence NTPP dle ošetřujícího lékaře"]
[]
[]
[]
[]
[]
[]
[null,null,null,"Surprise question: Byl byste překvapen, kdyby tento pacient zemřel do 12 měsíců?3"]
[null,null,null,null,null,null,null,null,null,null,null,null,null,null,null,"Signální kód"]
[null,null,null,"Jakou má pacient podle vašeho názoru pravděpodobnou dobu dožití (prognózu)?3"]
[]
[]
[null,null,null,null,null,null,null,null,null,null,null,null,null,null,null,"Osoby blízké / pečující"]
[null,null,null,"poznámky"]
[null,null,null,"1 datum zahájení hospitalizace v tomto zdravotnickém zařízení",null,null,null,null,null,null,null,null,null,null,null,"Jméno",null,"Příjmení",null,"Věk","Vztah k pacientovi4",null,"Blízkost k pacientovi5"]
[null,null,null,"2 nemocniční tým paliativní péče"]
[null,null,null,"3 dle ošetřujícího lékaře"]
[null,null,null,"4 vztah k pacientovi (partner, manžel, rodič, sourozenec, dítě, vnuk, jiný příbuzný, nepříbuzný / pečující)"]
[null,null,null,"5 blízkost k pacientovi dle blízkého (1 nejbližší / v důvěrném kontaktu – 5 neznámí / bez kontaktu)"]
[]
[]
[]
[null,null,null,"Komentář"]

{"sheet":"cesta","index":1,"n_rows":14,"n_cols":3,"rows_kept":14,"cut":false,"hidden":false,"merged":[[1,1,2,13],[9,2,10,12],[11,2,12,12]]}
[]
[]
[]
[]
[]
[]
[]
[]
[]
[null,null,"Sem zadejte cestu, kam chcete, aby se vám formulář uložil"]
[]
[]
[]
[null,null,"např.:C:\\Users\\novotny\\Documents\\elfis"]

{"sheet":"ciselnik","index":2,"n_rows":39,"n_cols":11,"rows_kept":39,"cut":false,"hidden":false,"merged":[[0,0,0,2]]}
["Vysvětlivky - data"]
[]
["Možnost","Kódování",null,"Pohlaví","Kódování"]
["Ano",1,null,"Muž",1]
["Ne",2,null,"Žena",2]
[]
[]
["Den","Kódování",null,"Měsíc","Kódování",null,"Rok","Kódování",null,"Performance status","Kódování"]
[1,1,null,"Leden",1,null,2019,2019,null,0,0]
[2,2,null,"Únor",2,null,2020,2020,null,1,1]
[3,3,null,"Březen",3,null,2021,2021,null,2,2]
[4,4,null,"Duben",4,null,2022,2022,null,3,3]
[5,5,null,"Květen",5,null,2023,2023,null,4,4]
[6,6,null,"Červen",6]
[7,7,null,"Červenec",7]
[8,8,null,"Srpen",8]
[9,9,null,"Září",9,null,null,null,null,"Prognóza","Kódování"]
[10,10,null,"Říjen",10,null,null,null,null,"dny",1]
[11,11,null,"Listopad",11,null,null,null,null,"týdny",2]
[12,12,null,"Prosinec",12,null,null,null,null,"měsíce",3]
[13,13,null,null,null,null,null,null,null,"roky",4]
[14,14,null,null,null,null,null,null,null,"neumím odhadnout",5]
[15,15]
[16,16]
[17,17]
[18,18]
[19,19]
[20,20]
[21,21]
[22,22]
[23,23]
[24,24]
[25,25]
[26,26]
[27,27]
[28,28]
[29,29]
[30,30]
[31,31]

{"sheet":"data","index":3,"n_rows":115,"n_cols":3,"rows_kept":115,"cut":false,"hidden":false,"merged":[]}
["Zahájení intervence paliativního týmu"]
["Jméno",{"$f":"formular!D10","v":0}]
["Příjmení",{"$f":"formular!G10","v":0}]
["Věk",{"$f":"formular!P10","v":0}]
["Rodné číslo",{"$f":"formular!K10","v":0}]
["Pohlaví"]
["Vyplnění - den"]
["Vyplnění - měsíc"]
["Vyplnění - rok",{"$f":"IF(C9=1,2019,IF(C9=2,2020,IF(C9=3,2021,IF(C9=4,2022,IF(C9=5,2023,\"-\")))))","v":"-"}]
["Datum hosp - den"]
["Datum hosp - mesic"]
["Datum hosp - rok",{"$f":"IF(C12=1,2019,IF(C12=2,2020,IF(C12=3,2021,IF(C12=4,2022,IF(C12=5,2023,\"-\")))))","v":"-"}]
["Datum vyžádání intervence NTPP - den"]
["Datum vyžádání intervence NTPP - mesic"]
["Datum vyžádání intervence NTPP - rok",{"$f":"IF(C15=1,2019,IF(C15=2,2020,IF(C15=3,2021,IF(C15=4,2022,IF(C15=5,2023,\"-\")))))","v":"-"}]
["Zakladní dg. při hospitalizaci",{"$f":"formular!L14","v":0}]
["Osoba s právem zástupného souhlasu",{"$f":"formular!L17","v":0}]
["Dokumentace obsahuje informaci o limitaci péče","-"]
["NE"]
["DNR"]
["DNI"]
["DVP"]
["jiné",{"$f":"formular!J19","v":0}]
["Oddělení vyžadující intervenci","-"]
["dermatologie"]
["emergency"]
["geriatrie"]
["gynekologie"]
["hematologie"]
["chirurgie"]
["interna"]
["kardiochirurgie"]
["neurologie"]
["onkologie"]
["ORL"]
["pediatrie"]
["porodní/neonatologie"]
["stomatologie"]
["urologie",false]
["jiné",{"$f":"formular!K25","v":0}]
["Standartní péče"]
["JIP / resuscitační péče"]
["Následná péče"]
["Důvody vyžádání intervence NTPP dle lékaře","-"]
["řešení symptomů"]
["podpora při obtížné komunikaci"]
["formulace cíle a plánu"]
["psychologická a sociální podpora pacienta"]
["psychologická a sociální podpora blízkých  osob pacienta"]
["formulace a komunikace limitace péče"]
["péče o pacienta v terminálním stavu",false]
["podpora při řešení etického dilematu"]
["příprava propuštění domů nebo předání do péče jiného poskytovatele"]
["spirituální intervence"]
["nespecifikováno"]
["jiné",{"$f":"formular!L34","v":0}]
["Surprise question"]
["Prognoza",0]
["Anamnéza","-"]
["Performance status při přijetí",{"$f":"IF(C60=1,0,IF(C60=2,1,IF(C60=3,2,IF(C60=4,3,4))))","v":0},1]
["Performance status ve stabilním stavu poslední měsíc před hospitalizací",{"$f":"IF(C61=1,0,IF(C61=2,1,IF(C61=3,2,IF(C61=4,3,4))))","v":0},1]
["Výhový úbytek více než 5 kg poslední měsíc"]
["NECPAL / PaPaS score",{"$f":"formular!S20","v":0}]
["Infarkt myokardu v posledních 6 měsících"]
["Demence, mentální retardace"]
["DM s těžkým orgánovým postižením (např. slepota, ren. Selhání)"]
["Malignity (včetně lymfomu a leukémie, mimo zhoubný novotvar kůže)"]
["AIDS/HIV"]
["Městnavé srdeční selhání"]
["CHOPN"]
["Renální selhání středně významné a významné"]
["Jaterní postižení středně významné a významné (cirhóza, jícnové varixy, ascites, ikterus)"]
["Periferní cévní onemocnění (např. ICHDK, bércový vřed, stenóza či uzávěr karotidy)"]
["VCHGD aktivní v posledních 6 měsících"]
["Hemiplegie / paraplegie"]
["Solidní nádor s metastatickým postižením"]
["Cerebrovaskulární onemocnění (CMP ischem., krvácivá, recidivující TIA)"]
["DM bez orgánových komplikací"]
["Revmatická onemocnění"]
["Jaterní postižení mírné (např. stenóza)"]
["Pacient indikován k péči NTPP"]
["Není indikován - důvod",{"$f":"formular!T35","v":0}]
["Signální kód","-"]
["terminální paliativní péče"]
["terminální paliativní péče u dítěte / nezletilého pacienta"]
["časná paliativní péče"]
["časná paliativní péče u dítěte / nezletilého pacienta"]
["podpůrná intervence pro blízké a pečující osoby závažně nemocného pacienta"]
["Osoby blízké / pečující","-"]
["Jméno 1",{"$f":"formular!P44","v":0}]
["Příjmení 1",{"$f":"formular!R44","v":0}]
["Věk 1",{"$f":"formular!T44","v":0}]
["Vztah k pacientovi 1",{"$f":"formular!U44","v":0}]
["Blízkost k pacientovi 1",{"$f":"formular!W44","v":0}]
["Jméno 2",{"$f":"formular!P45","v":0}]
["Příjmení 2",{"$f":"formular!R45","v":0}]
["Věk 2",{"$f":"formular!T45","v":0}]
["Vztah k pacientovi 2",{"$f":"formular!U45","v":0}]
["Blízkost k pacientovi 2",{"$f":"formular!W45","v":0}]
["Jméno 3",{"$f":"formular!P46","v":0}]
["Příjmení 3",{"$f":"formular!R46","v":0}]
["Věk 3",{"$f":"formular!T46","v":0}]
["Vztah k pacientovi 3",{"$f":"formular!U46","v":0}]
["Blízkost k pacientovi 3",{"$f":"formular!W46","v":0}]
["Jméno 4",{"$f":"formular!P47","v":0}]
["Příjmení 4",{"$f":"formular!R47","v":0}]
["Věk 4",{"$f":"formular!T47","v":0}]
["Vztah k pacientovi 4",{"$f":"formular!U47","v":0}]
["Blízkost k pacientovi 4",{"$f":"formular!W47","v":0}]
["Jméno 5",{"$f":"formular!P48","v":0}]
["Příjmení 5",{"$f":"formular!R48","v":0}]
["Věk 5",{"$f":"formular!T48","v":0}]
["Vztah k pacientovi 5",{"$f":"formular!U48","v":0}]
["Blízkost k pacientovi 5",{"$f":"formular!W48","v":0}]
["Komentář",{"$f":"formular!D52","v":0}]